Cogmind - Beta 15 @@@ ROGUE MODE // 2025.06.21 @ 10:13:33 Player: Storm Mk9 Result: Destroyed by Y-45 Defender with Heavy Assault Rifle Performance ------------- Evolutions (0) 0 Regions Visited (2) 400 Robots Destroyed (18) 90 Value Destroyed (514) 514 Prototype IDs (14) 280 Alien Tech Used (0) 0 Bonus (0) 0 TOTAL SCORE: 1284 Bonus ------- None Cogmind --------- Core Integrity 0/250 Matter 222/300 Energy 255/265 System Corruption 0% Temperature Cool (11) Movement Core (400) Ox7 Location -10/Subcaves Parts ------- > --- POWER (1) -------- Improved Ion Engine > --- PROPULSION (2) --- Light Treads Light Treads > --- UTILITY (2) ------ Small Storage Unit Medium Armor Plating > --- WEAPON (2) ------- Beam Rifle > --- INVENTORY (8) ---- Medium Armor Plating Slug Cannon Maul Peak State ------------ > --- POWER ------------ Improved Ion Engine > --- PROPULSION ------- Light Treads Spiked Treads > --- UTILITY ---------- Small Storage Unit Medium Armor Plating > --- WEAPON ----------- Beam Rifle Barrage Gun > --- INVENTORY -------- Improved Ion Engine Light Treads Medium Armor Plating Medium Armor Plating Beam Rifle Slug Cannon Maul [Rating: 14] Favorites ----------- Power Improved Ion Engine Engine Improved Ion Engine Propulsion Light Treads Treads Light Treads Utility Small Storage Unit Device Seismic Detector Storage Small Storage Unit Protection Medium Armor Plating Weapon Beam Rifle Energy Gun Beam Rifle Ballistic Gun Light Assault Rifle Ballistic Cannon Slug Cannon Impact Weapon Maul Build | -11 -10 -10 ------- Run | Yrd Mat Sub Slots Evolved . | . . . Power . | . . . Propulsion . | . . . Utility . | . . . Weapon . | . . . Parts Attached 23 | 7 8 8 Power 3 | 1 1 1 Engine 3 | 1 1 1 Core . | . . . Reactor . | . . . Propulsion 6 | 2 3 1 Treads 6 | 2 3 1 Leg . | . . . Wheel . | . . . Hover . | . . . Flight . | . . . Utility 6 | 2 2 2 Device 1 | 1 . . Storage 1 | 1 . . Processor . | . . . Hackware . | . . . Protection 4 | . 2 2 Artifact . | . . . Weapon 8 | 2 2 4 Energy Gun 4 | 2 1 1 Energy Cannon . | . . . Ballistic Gun 2 | . 1 1 Ballistic Cannon 1 | . . 1 Launcher . | . . . Special Weapon . | . . . Impact Weapon 1 | . . 1 Slashing Weapon . | . . . Piercing Weapon . | . . . Special Melee Weapon . | . . . Unidentified Prototypes . | . . . Parts Lost 6 | . . 6 Power 1 | . . 1 Propulsion 1 | . . 1 Utility 2 | . . 2 Weapon 2 | . . 2 Highest Loss Streak 3 | . . 3 To Critical Strikes . | . . . Average Backups 6 | 2 7 6 Power . | . 1 . Propulsion . | . . . Utility 2 | . 3 2 Weapon 2 | 1 2 2 Tool/Special . | . . . Unused Backups 5 | . 4 1 Power 1 | . 1 . Propulsion . | . . . Utility 2 | . 1 1 Weapon 2 | . 2 . Tool/Special . | . . . Average Slot Usage (%) 98 | . 100 97 Engine 14 | . 14 14 Treads 28 | . 28 28 Device 9 | . 8 10 Storage 14 | . 14 14 Protection 4 | . 5 3 Energy Gun 16 | . 20 14 Ballistic Gun 9 | . 7 10 Peak Build Rating 14 | 7 10 14 Average Rating 10 | 5 9 11 On Entrance 5 | . 7 10 Naked Turns . | . . . Heaviest Build 25 | 13 21 25 Greatest Support 40 | 40 40 40 Greatest Overweight (x) 7 | . . 7 Average Overweight (x) . | . . . Largest Inventory Capacity 8 | 8 8 8 Average Capacity 7 | 7 8 8 Most Carried 8 | 4 8 8 Average Carried 6 | 2 7 6 Final Capacity 8 | 8 8 8 Final Carried 8 | 3 8 3 Class Distribution -------------------- 100% | Mutant Dominant Class ---------------- Mutant | -10/Materials Mutant | -10/Subcaves Resources | -11 -10 -10 ----------- Run | Yrd Mat Sub Matter Collected 522 | 260 79 183 Remotely . | . . . Salvage Created 617 | 75 246 296 Parts 44 | 8 14 22 Haulers Intercepted . | . . . Recyclers Shooed . | . . . Parts Field Recycled . | . . . Retrieved Matter . | . . . Parts Self-Destructed 2 | . . 2 Prevented . | . . . Kills | -11 -10 -10 ------- Run | Yrd Mat Sub Combat Hostiles Destroyed 15 | . 8 7 Guns 15 | . 8 7 Classes Destroyed 4 | 1 2 1 Tunneler 3 | 3 . . Swarmer 3 | . 3 . Grunt 5 | . 5 . Subdweller 7 | . . 7 Best Kill Streak 3 | 2 3 3 Combat Bots Only 3 | . 3 3 Max Kills in Single Turn 2 | 1 2 1 Gunslinging 1 | . 1 . Exploded . | . . . Melee . | . . . Uniques/NPCs Destroyed . | . . . Combat | -11 -10 -10 -------- Run | Yrd Mat Sub Hostile Shots Fired 97 | . 35 62 Missed 22 | . 9 13 Hits 75 | . 26 49 Projectile 75 | . 26 49 Critical Strikes 5 | . 1 4 Damage Taken 1442 | . 307 1135 Core 257 | . 22 235 Absorbed by Shields . | . . . Core Remaining (%) 100 | 100 . . Volleys Fired 63 | 5 25 33 Largest 2 | 2 2 2 Hottest 112 | 80 80 112 Shots Fired 119 | 10 49 60 Gun 115 | 10 49 56 Cannon 4 | . . 4 Launcher . | . . . Special . | . . . Kinetic 40 | . 9 31 Thermal 79 | 10 40 29 Explosive . | . . . Electromagnetic . | . . . Robot Hit Streak 14 | 3 14 13 Robot Miss Streak 4 | 2 4 3 Penetration Max . | . . . Secondary Targets 2 | . 1 1 Max Gunslinging Chain 1 | . 1 1 Shots Hit Robots 88 | 6 32 50 Core Hits 34 | 3 15 16 Critical Kills . | . . . Critical Parts Destroyed . | . . . Critical Strikes . | . . . Melee Attacks . | . . . Impact . | . . . Slashing . | . . . Piercing . | . . . Sneak Attacks . | . . . Combat Hostiles . | . . . Follow-up Attacks . | . . . Damage Inflicted 1219 | 64 341 814 Guns 1137 | 64 341 732 Cannons 82 | . . 82 Explosions . | . . . Melee . | . . . Ramming . | . . . Kinetic 527 | . 28 499 Thermal 692 | 64 313 315 Explosive . | . . . Electromagnetic . | . . . Impact . | . . . Slashing . | . . . Piercing . | . . . Highest Corruption . | . . . Average Corruption . | . . . Corruption Purged . | . . . Corruption Blocked . | . . . Overload Shots . | . . . Overflow Damage . | . . . Projectiles . | . . . Explosions . | . . . Melee . | . . . Knockbacks 2 | . . 2 Impact . | . . . Kinetic 2 | . . 2 Secondary . | . . . Self-Inflicted Damage . | . . . Shots . | . . . Rammed . | . . . Targets Rammed . | . . . Kicked . | . . . Crushed . | . . . Highest Temperature 843 | 36 252 843 Average Temperature 160 | 19 85 285 Received Heat Transfer 1559 | . 165 1394 Effects 16 | . 2 14 Shutdowns 3 | . . 3 Energy Bleed 2 | . . 2 Interference 3 | . 2 1 Matter Decay 1 | . . 1 Short Circuit 3 | . . 3 Damage (minor) 3 | . . 3 Damage (major) 1 | . . 1 Siege Activations . | . . . Martial Activations . | . . . Shielding Activations . | . . . Robots Disrupted . | . . . Combat Hostiles . | . . . Robots Corrupted . | . . . Combat Hostiles . | . . . Parts Fried . | . . . Impact Corruptions . | . . . Robots Melted . | . . . Combat Hostiles . | . . . Parts Melted 3 | . 3 . Heat Transferred 1664 | 150 700 814 Parts Sabotaged . | . . . Parts Stolen . | . . . Parts Stripped . | . . . Power Chain Reactions . | . . . Alert | -11 -10 -10 ------- Run | Yrd Mat Sub Maximum Alert Level . | . . . Low Security (%) 100 | 100 100 . Level 1 . | . . . Level 2 . | . . . Level 3 . | . . . Level 4 . | . . . Level 5 . | . . . High Security . | . . . Max Security . | . . . Peak Influence 70 | 5 70 . Initial . | . . . Average 12 | . 14 . Influence Increases 228 | 15 213 . Destroy 0b10 Robot/C 160 | . 160 . Destroy 0b10 Robot/NC 15 | 15 . . Destroy Leader 40 | . 40 . Successful Hack 13 | . 13 . Influence Decreases 228 | 15 213 . Time Decay 228 | 15 213 . Squads Dispatched 3 | . 3 . Investigation . | . . . Extermination . | . . . Reinforcement 3 | . 3 . Assault . | . . . Garrison . | . . . Intercept . | . . . Searches Triggered . | . . . Construction Impeded . | . . . Haulers Reinforced . | . . . Active Scanning Responses . | . . . Cargo Convoy Interrupts . | . . . Stealth | -11 -10 -10 --------- Run | Yrd Mat Sub Distress Signals 1 | . 1 . Communications Jammed . | . . . Distress Signals . | . . . Times Spotted 23 | . 14 9 Peak Tracking Total 4 | . 4 3 Tactical Retreats . | . . . Traps | -11 -10 -10 ------- Run | Yrd Mat Sub Traps Triggered . | . . . Indirectly . | . . . Trap Hack Attempts . | . . . Triggered . | . . . Disarmed . | . . . Reprogrammed . | . . . Reused . | . . . Traps Extracted . | . . . Installed . | . . . Triggered . | . . . Machines | -11 -10 -10 ---------- Run | Yrd Mat Sub Machines Disabled . | . . . Max in Single Turn . | . . . Machines Repaired . | . . . Machines Dismantled . | . . . Machines Sabotaged . | . . . Overloaded Fab Kills . | . . . Hacking | -11 -10 -10 --------- Run | Yrd Mat Sub Machines Accessed 5 | . 4 1 Terminals 4 | . 4 . Fabricators . | . . . Repair Stations . | . . . Recycling Units . | . . . Scanalyzers . | . . . Garrison Access . | . . . Total Hacks 14 | . 13 1 Successful 9 | . 8 1 Failed 5 | . 5 . Catastrophic . | . . . Database Lockouts . | . . . Manual 7 | . 7 . Terminals 13 | . 13 . Fabricators . | . . . Repair Stations . | . . . Recycling Units . | . . . Scanalyzers . | . . . Garrison Access . | . . . Terminal Hacks 7 | . 6 1 Robot Analysis 2 | . 2 . Prototype ID Bank 2 | . 2 . Locate Traps 2 | . 2 . Proto ID Catalog 1 | . . 1 Fabricator Hacks . | . . . Repair Station Hacks . | . . . Recycling Unit Hacks . | . . . Scanalyzer . | . . . Garrison Access Hacks . | . . . Unauthorized Hacks 2 | . 2 . Terminals 2 | . 2 . Botnet 2 | . 2 . Fabricators . | . . . Repair Stations . | . . . Recycling Units . | . . . Scanalyzers . | . . . Garrison Access . | . . . Data Cores Recovered . | . . . Used . | . . . Hacking Detections 4 | . 4 . Full Trace Events . | . . . Feedback Events . | . . . Feedback Blocked . | . . . Robot Schematics Acquired . | . . . Robots Built . | . . . Authchips . | . . . Time . | . . . Total Robot Build Rating . | . . . Part Schematics Acquired . | . . . Parts Built . | . . . Authchips . | . . . Time . | . . . Total Part Build Rating . | . . . Parts Repaired . | . . . Time . | . . . Parts Recycled . | . . . Recycled Matter . | . . . Retrieved Matter . | . . . Retrieved Components . | . . . Parts Scanalyzed . | . . . Part Schematics Acquired . | . . . Parts Damaged . | . . . Bothacking | -11 -10 -10 ------------ Run | Yrd Mat Sub Used RIF Installer . | . . . Robots Hacked . | . . . Non-combat . | . . . Combat . | . . . Robot Hacks Applied . | . . . Relay Couplers Released . | . . . Fabnet Peak Effective % . | . . . Robots Rewired . | . . . Allies Hacked . | . . . Hacks Repelled . | . . . Allies | -11 -10 -10 -------- Run | Yrd Mat Sub Total Allies . | . . . Largest Group . | . . . Highest-Rated Group . | . . . Highest-Rated Ally . | . . . Total Orders . | . . . Ally Attacks . | . . . Total Damage . | . . . Kills . | . . . Allies Corrupted . | . . . Allies Melted . | . . . Intel | -11 -10 -10 ------- Run | Yrd Mat Sub Active Infowar (turns) 1375 | 24 484 867 Seismic 1375 | 24 484 867 Robot Analysis Total 2 | . 2 . Derelict Logs Recovered . | . . . Drone Launches . | . . . Drone Recoveries . | . . . Exploration | -11 -10 -10 ------------- Run | Yrd Mat Sub Turns Passed 2186 | 181 784 1221 Spaces Moved 1008 | 96 326 586 Core 56 | 7 . 49 Treads 952 | 89 326 537 Legs . | . . . Wheels . | . . . Hover . | . . . Flight . | . . . Fastest Speed 50 | 50 160 160 Average Speed 170 | 151 160 180 Slowest Speed 400 | 160 160 400 Overloaded Moves . | . . . Propulsion Burnouts . | . . . Robots Hopped . | . . . Potential Cave-ins . | . . . Cave-ins Triggered . | . . . Exploration Rate (%) 39 | 6 75 38 Regions Visited 2 Branch Regions 1 Pre-discovered Areas . | . . . Known Exits Taken . | . . . Unknown Exits Taken 2 | 1 1 . Scrap Searched 3 | . . 3 Spaces Dug . | . . . Terrain Destroyed 2 | . . 2 Melee . | . . . Projectile 2 | . . 2 AOE . | . . . Terrain Rammed . | . . . Walls Destroyed . | . . . Machines Disabled . | . . . Actions | -11 -10 -10 --------- Run | Yrd Mat Sub Total 1363 | 121 546 696 Wait 231 | 4 165 62 Move 1006 | 95 325 586 Hop . | . . . Pick Up 22 | 10 11 1 Fast Attach . | . . . Attach 13 | 7 . 6 Detach 1 | . . 1 Swap 13 | . 9 4 Drop 14 | . 11 3 Fire 63 | 5 25 33 Melee . | . . . Ram . | . . . Kick . | . . . Crush . | . . . Escape Stasis . | . . . Rewire . | . . . Trap . | . . . Miscellaneous . | . . . Route ------- -11/Scrapyard -10/Materials (discovered 5 exits: [*Mat x3] / [*Min] / *Sub) -10/Subcaves History --------- Turn | Location | Event 35 | -11/Scrapyard | Discovered new exit (range 16) 182 | -11/Scrapyard | Entered Materials 316 | -10/Materials | Build established: Mutant 515 | -10/Materials | Discovered new exit (range 16) 762 | -10/Materials | Discovered new exit (range 16) 804 | -10/Materials | Discovered new exit (range 13) 896 | -10/Materials | Discovered new exit (range 16) 949 | -10/Materials | Discovered new exit (range 4) 966 | -10/Materials | Entered Subcaves 967 | -10/Subcaves | Approached by a straggling Scientist 1397 | -10/Subcaves | Ambushed by Subdwellers from Twisted Machinery 1470 | -10/Subcaves | Disturbed a concealed Subdweller 1833 | -10/Subcaves | Core integrity fell below 50% 1847 | -10/Subcaves | Visited 4L-MR0's lab 1923 | -10/Subcaves | Core integrity fell below 20% 1973 | -10/Subcaves | Lost 3 parts (1n1u1w) 2187 | -10/Subcaves | Destroyed by Y-45 Defender with Heavy Assault Rifle Last Messages --------------- 01945_ Slug penetrates ON-IUT(R). 01945_ ON-IUT(R) knocked back. 01946_ Power failure, Imp. Ion Engine shutdown. 01948_ Overheating: Lgt. Treads damaged (-35). 01951_ Lgt. Treads broken. 01951_ Overheating: Short circuit. 01951_ ON-IUT(R) knocked back. 01952_ Subatomizers dissect the Wheel. 01953_ Lgt. Treads broken. 01953_ Overheating: Short circuit. 01954_ ON-IUT(R) destroyed. 01958_ Overheating: Energy bleed (-66). 01962_ Slug Cannon broken. 01962_ Overheating: Short circuit. 01966_ Subatomizers dissect the Wheel. 01994_ Acquired 5 matter. 02002_ Acquired 31 matter. 02021_ Subatomizers dissect the Wheel, destroying it. 02187_ Beam Rifle destroyed. Map ----- +----------------------------------------------------+ | ####### #######???????????????????????????? | | ##?### ####" ??????????????????????? | | ##?### """??????????????????????? | | ### """"??????????????????????? | | ##"???????????????????????? | | ## #?????????????????????????? | | ?# # ## ##?????????????????????????? | | ?# #### #??????????????????????????? | | ## ## ## #??????????????????????????? | | #### ## #### #??????????????????????????? | | #### #### ######??????????????????????????? | | ## #### #??????????????????????????????? | | # ## #??????????????????????????????? | | ##?????????????????????????????? | | ##?##?????????????????????????? | | ## ##????????????????????????? | | ## ##????##?????????????????? | | #### #??? #?????????????????? | | ##?# #??? #?????????????????? | | ### ##?? #??????????????????? | | ## ###??# #??????????????????? | | ### #### #??????????????????? | | ## #?## ### #????????????????????? | | ### #?### # ##???????????????????? | | # #?# #???# #???????????????????? | | # ##?# ???# # @ #???????????????????? | | # ##?? ???####### ##???????????????????? | | ## ##???# ????????? #????????????????????? | | ?## #????# ?????????? #????????????????????? | | ??? #???? ?????????? #????????????????????? | | ???# #????? ?????????? #????????????????????? | | #??? #??????????????? ## ????????????????????? | | ? ##??????????????? #?? #???????????????????? | | ##??????????????? ??? ##???????????????????? | | ##???????????????? ??? ????????????????????? | | ##???????????????? ???? ????????????????????? | | ##????????????????? #????Y ????????????????????? | | #????????????????? ????? ???????????????????? | | ##????????????????? ??????? #???????????????????? | | ??????????????????????????###???????????????????? | | ????????????????????????????????????????????????? | | ?????????????????????????????????????????????????? | | ?????????????????????????????????????????????????? | | ?????????????????????????????????????????????????? | | ?????????????????????????????????????????????????? | | ?????????????????????????????????????????????????? | | ?????????????????????????????????????????????????? | | ?????????????????????????????????????????????????? | | ?????????????????????????????????????????????????? | | ?????????????????????????????????????????????????? | +----------------------------------------------------+ Best States ------------- Heat Dissipation 25 Energy Generation 12 Energy Capacity 265 Matter Stores 300 Matter Capacity 300 Sight Range 16 Terrain Scan Density 10 Armor Coverage 225 Evasion (%) 40 Recoil Reduction 2 Item Schematics ----------------- None Robot Schematics ------------------ None Fabricated ------------ Nothing Repaired ---------- Nothing Alien Tech Used ----------------- None Achievements -------------- None Challenges ------------ None Game ------ Seed TeleporterArcsightCoupler Manual? 0 Play Time 00:27:34 Cumulative 78.3 hours Start 2025.06.20 @ 22:39:41 End 2025.06.21 @ 10:13:33 Sessions 3 Manual Loads 0 Difficulty Rogue Special Mode None Game No. 76 Rogue 57 Adventurer 0 Explorer 19 Win Type - Total 0 Types 0/0/0/0/0/0/0/0/0/0 Lore% 54 Gallery% 44 Achievement% 68 Wizard Run 0 Options --------- Layout 1 ASCII 0 Keyboard 0 Movement Mouse Keybinds 0 Fullscreen 2 Font 16/SmallcapsGlow Map View 50x40 Zoom Use 0% Tactical HUD 1 Map Filters NONE Filters NONE Steam SD RUN: 7fa78705-168c-45f9-b562-53a54f9e5751